Workbook

Sheet Antworten
C1: ACHTUNG: Wähle die richtigen Antworten aus oder Kreuze sie an !!! | T1: Anzeigen! | W1: 30 | CC1: ACHTUNG: Wähle die richtigen Antworten aus oder Kreuze sie an !!! | CW1: =Antworten!W1 -> 30
C2: FMOD - Fragen und Beispiele zur Umsatzsteuer | CC2: FAs & BSPs: Umsatzsteuer
Y3: =G72 -> 0 | AU3: Spaltenindices: | CY3: =CG72 -> Nettowert
C4: Grundkompetenzen (GK4) | R4: ! ! ! ! ! | T4: Pkte | U4: / | V4: Ges. | Y4: =N72 -> 0 | AU4: =COLUMNS($C$5:AU5) -> 45 | AW4: =COLUMNS($C$5:AW5) -> 47 | AX4: =SPI_gPKTE+1 -> 48 | AZ4: Deine Antworten | BE4: Richtige Antworten | CC4: Grundkompetenzen (GK5) | CR4: ! ! ! ! ! | CT4: Pkte | CU4: / | CV4: Ges. | CY4: =CN72 -> Preis
Y5: =P72 -> 0 | CY5: =CP72 -> ohne
C6: 1. | D6: Rahme auf folgenden Belegen den Nettobetrag rot, den Umsatzsteuersatz und den Umsatzsteuerbetrag blau und den Bruttobetrag grün ein … | Y6: =Q121 -> 0 | AS6: F | AT6: =COUNTA($AS$4:AS6) -> 1 | AU6: =SUM(T29:T70) -> 0 | AV6: / | AW6: =SUM(V29:V70) -> 9 | AX6: =MID(GK,FIND("(",GK,1)+1,(FIND(")",GK,1)-FIND("(",GK,1)-1)) -> GK4 | CC6: 3. | CD6: Rahme auf folgenden Belegen den Nettobetrag rot, den Umsatzsteuersatz und den Umsatzsteuerbetrag grün und den Bruttobetrag blau ein … | CY6: =CQ121 -> Unternehmens
D7: a. | CD7: c.
N10: … | O10: und schreibe die jeweiligen Beträge aus dem Beleg heraus: (4 Punkte) | CN10: … | CO10: und schreibe die jeweiligen Beträge aus dem Beleg heraus: (4 Punkte)
O12: Nettobetrag | Y12: =Q13 -> 0 | CO12: Nettobetrag
T13: =IF(Q13="","",SUM(IF(COUNTIF(BE13:BE13,AZ13)>0,1/COUNTIF(AZ13:AZ13,AZ13),0),IF(COUNTIF(BF13:BF13,BA13)>0,1/COUNTIF(BA13:BA13,BA13),0),IF(COUNTIF(BG13:BG13,BB13)>0,1/COUNTIF(BB13:BB13,BB13),0),IF(COUNTIF(BH13:BH13,BC13)>0,1/COUNTIF(BC13:BC13,BC13),0))) ->  | U13: / | V13: =COUNTA(BE13:BH13) -> 1 | AZ13: =Q13 -> 0 | BD13: 10 | BE13: =CQ13 -> 268.2 | CQ13: 268.2 | CT13: 1 | CU13: / | CV13: 1 | CY13: =CQ13 -> 268.2
O15: Im Beleg angewandter Umsatz- | Y15: =Q16 -> 0 | CO15: Im Beleg angewandter Umsatz-
O16: steuersatz | T16: =IF(Q16="","",SUM(IF(COUNTIF(BE16:BE16,AZ16)>0,1/COUNTIF(AZ16:AZ16,AZ16),0),IF(COUNTIF(BF16:BF16,BA16)>0,1/COUNTIF(BA16:BA16,BA16),0),IF(COUNTIF(BG16:BG16,BB16)>0,1/COUNTIF(BB16:BB16,BB16),0),IF(COUNTIF(BH16:BH16,BC16)>0,1/COUNTIF(BC16:BC16,BC16),0))) ->  | U16: / | V16: =COUNTA(BE16:BH16) -> 1 | AZ16: =Q16 -> 0 | BD16: 11 | BE16: =CQ16 -> 0.2 | CO16: steuersatz | CQ16: 0.2 | CT16: 1 | CU16: / | CV16: 1 | CY16: =CQ16 -> 0.2
O17: Umsatzsteuerbetrag | Y17: =Q18 -> 0 | CO17: Umsatzsteuerbetrag
T18: =IF(Q18="","",SUM(IF(COUNTIF(BE18:BE18,AZ18)>0,1/COUNTIF(AZ18:AZ18,AZ18),0),IF(COUNTIF(BF18:BF18,BA18)>0,1/COUNTIF(BA18:BA18,BA18),0),IF(COUNTIF(BG18:BG18,BB18)>0,1/COUNTIF(BB18:BB18,BB18),0),IF(COUNTIF(BH18:BH18,BC18)>0,1/COUNTIF(BC18:BC18,BC18),0))) ->  | U18: / | V18: =COUNTA(BE18:BH18) -> 1 | AZ18: =Q18 -> 0 | BD18: 12 | BE18: =CQ18 -> 53.64 | CQ18: 53.64 | CT18: 1 | CU18: / | CV18: 1 | CY18: =CQ18 -> 53.64
O19: Bruttobetrag | Y19: =Q20 -> 0 | CO19: Bruttobetrag
T20: =IF(Q20="","",SUM(IF(COUNTIF(BE20:BE20,AZ20)>0,1/COUNTIF(AZ20:AZ20,AZ20),0),IF(COUNTIF(BF20:BF20,BA20)>0,1/COUNTIF(BA20:BA20,BA20),0),IF(COUNTIF(BG20:BG20,BB20)>0,1/COUNTIF(BB20:BB20,BB20),0),IF(COUNTIF(BH20:BH20,BC20)>0,1/COUNTIF(BC20:BC20,BC20),0))) ->  | U20: / | V20: =COUNTA(BE20:BH20) -> 1 | AZ20: =Q20 -> 0 | BD20: 13 | BE20: =CQ20 -> 321.84 | CQ20: 321.84 | CT20: 1 | CU20: / | CV20: 1 | CY20: =CQ20 -> 321.84
D29: b. | CD29: a.
J32: … | K32: und schreibe die jeweiligen Beträge aus dem | CJ32: … | CK32: und schreibe die jeweiligen Beträge aus dem Beleg auf: (4 Punkte)
K33: Beleg auf: (4 Punkte)
K34: Nettobetrag | T34: =IF(P34="","",SUM(IF(COUNTIF(BE34:BE34,AZ34)>0,1/COUNTIF(AZ34:AZ34,AZ34),0),IF(COUNTIF(BF34:BF34,BA34)>0,1/COUNTIF(BA34:BA34,BA34),0),IF(COUNTIF(BG34:BG34,BB34)>0,1/COUNTIF(BB34:BB34,BB34),0),IF(COUNTIF(BH34:BH34,BC34)>0,1/COUNTIF(BC34:BC34,BC34),0))) ->  | U34: / | V34: =COUNTA(BE34:BH34) -> 1 | Y34: =P34 -> 0 | AZ34: =P34 -> 0 | BD34: 1 | BE34: =CP34 -> 112 | CK34: Nettobetrag | CP34: 112 | CT34: 1 | CU34: / | CV34: 1 | CY34: =CP34 -> 112
K36: Im Beleg angewandter Umsatzsteuersatz | Y36: =P37 -> 0 | CK36: Im Beleg angewandter Umsatzsteuersatz
T37: =IF(P37="","",SUM(IF(COUNTIF(BE37:BE37,AZ37)>0,1/COUNTIF(AZ37:AZ37,AZ37),0),IF(COUNTIF(BF37:BF37,BA37)>0,1/COUNTIF(BA37:BA37,BA37),0),IF(COUNTIF(BG37:BG37,BB37)>0,1/COUNTIF(BB37:BB37,BB37),0),IF(COUNTIF(BH37:BH37,BC37)>0,1/COUNTIF(BC37:BC37,BC37),0))) ->  | U37: / | V37: =COUNTA(BE37:BH37) -> 1 | AZ37: =P37 -> 0 | BD37: 2 | BE37: =CP37 -> 0.1 | CP37: 0.1 | CT37: 1 | CU37: / | CV37: 1 | CY37: =CP37 -> 0.1
K38: Umsatzsteuerbetrag | CK38: Umsatzsteuerbetrag
T39: =IF(P39="","",SUM(IF(COUNTIF(BE39:BE39,AZ39)>0,1/COUNTIF(AZ39:AZ39,AZ39),0),IF(COUNTIF(BF39:BF39,BA39)>0,1/COUNTIF(BA39:BA39,BA39),0),IF(COUNTIF(BG39:BG39,BB39)>0,1/COUNTIF(BB39:BB39,BB39),0),IF(COUNTIF(BH39:BH39,BC39)>0,1/COUNTIF(BC39:BC39,BC39),0))) ->  | U39: / | V39: =COUNTA(BE39:BH39) -> 1 | Y39: =P39 -> 0 | AZ39: =P39 -> 0 | BD39: 3 | BE39: =CP39 -> 22.4 | CP39: 22.4 | CT39: 1 | CU39: / | CV39: 1 | CY39: =CP39 -> 22.4
K41: Bruttobetrag | T41: =IF(P41="","",SUM(IF(COUNTIF(BE41:BE41,AZ41)>0,1/COUNTIF(AZ41:AZ41,AZ41),0),IF(COUNTIF(BF41:BF41,BA41)>0,1/COUNTIF(BA41:BA41,BA41),0),IF(COUNTIF(BG41:BG41,BB41)>0,1/COUNTIF(BB41:BB41,BB41),0),IF(COUNTIF(BH41:BH41,BC41)>0,1/COUNTIF(BC41:BC41,BC41),0))) ->  | U41: / | V41: =COUNTA(BE41:BH41) -> 1 | Y41: =P41 -> 0 | AZ41: =P41 -> 0 | BD41: 4 | BE41: =CP41 -> 134.4 | CK41: Bruttobetrag | CP41: 134.4 | CT41: 1 | CU41: / | CV41: 1 | CY41: =CP41 -> 134.4
D50: c. | CD50: b.
J53: … | K53: und schreibe die jeweiligen Beträge aus dem Beleg auf: (5 Punkte) | CJ53: … | CK53: und schreibe die jeweiligen Beträge aus dem Beleg auf: (5 Punkte)
K54: Nettobetrag | T54: =IF(P54="","",SUM(IF(COUNTIF(BE54:BE54,AZ54)>0,1/COUNTIF(AZ54:AZ54,AZ54),0),IF(COUNTIF(BF54:BF54,BA54)>0,1/COUNTIF(BA54:BA54,BA54),0),IF(COUNTIF(BG54:BG54,BB54)>0,1/COUNTIF(BB54:BB54,BB54),0),IF(COUNTIF(BH54:BH54,BC54)>0,1/COUNTIF(BC54:BC54,BC54),0))) ->  | U54: / | V54: =COUNTA(BE54:BH54) -> 1 | Y54: =P54 -> 0 | AZ54: =P54 -> 0 | BD54: 5 | BE54: =CP54 -> 5.8 | CK54: Nettobetrag | CP54: 5.8 | CT54: 1 | CU54: / | CV54: 1 | CY54: =CP54 -> 5.8
K56: Im Beleg angewandte Umsatzsteuersätze | CK56: Im Beleg angewandte Umsatzsteuersätze
T57: =IF(P57="","",SUM(IF(COUNTIF(BE57:BE57,AZ57)>0,1/COUNTIF(AZ57:AZ57,AZ57),0),IF(COUNTIF(BF57:BF57,BA57)>0,1/COUNTIF(BA57:BA57,BA57),0),IF(COUNTIF(BG57:BG57,BB57)>0,1/COUNTIF(BB57:BB57,BB57),0),IF(COUNTIF(BH57:BH57,BC57)>0,1/COUNTIF(BC57:BC57,BC57),0))) ->  | U57: / | V57: =COUNTA(BE57:BH57) -> 1 | Y57: =P57 -> 0 | AZ57: =P57 -> 0 | BD57: 6 | BE57: =CP57 -> 0.1 | CP57: 0.1 | CT57: 1 | CU57: / | CV57: 1 | CY57: =CP57 -> 0.1
T58: =IF(P58="","",SUM(IF(COUNTIF(BE58:BE58,AZ58)>0,1/COUNTIF(AZ58:AZ58,AZ58),0),IF(COUNTIF(BF58:BF58,BA58)>0,1/COUNTIF(BA58:BA58,BA58),0),IF(COUNTIF(BG58:BG58,BB58)>0,1/COUNTIF(BB58:BB58,BB58),0),IF(COUNTIF(BH58:BH58,BC58)>0,1/COUNTIF(BC58:BC58,BC58),0))) ->  | U58: / | V58: =COUNTA(BE58:BH58) -> 1 | Y58: =P58 -> 0 | AZ58: =P58 -> 0 | BD58: 7 | BE58: =CP58 -> 0.2 | CP58: 0.2 | CT58: 1 | CU58: / | CV58: 1 | CY58: =CP58 -> 0.2
K59: Umsatzsteuerbetrag | CK59: Umsatzsteuerbetrag
T60: =IF(P60="","",SUM(IF(COUNTIF(BE60:BE60,AZ60)>0,1/COUNTIF(AZ60:AZ60,AZ60),0),IF(COUNTIF(BF60:BF60,BA60)>0,1/COUNTIF(BA60:BA60,BA60),0),IF(COUNTIF(BG60:BG60,BB60)>0,1/COUNTIF(BB60:BB60,BB60),0),IF(COUNTIF(BH60:BH60,BC60)>0,1/COUNTIF(BC60:BC60,BC60),0))) ->  | U60: / | V60: =COUNTA(BE60:BH60) -> 1 | Y60: =P60 -> 0 | AZ60: =P60 -> 0 | BD60: 8 | BE60: =CP60 -> 1.06 | CP60: 1.06 | CT60: 1 | CU60: / | CV60: 1 | CY60: =CP60 -> 1.06
K62: Bruttobetrag | T62: =IF(P62="","",SUM(IF(COUNTIF(BE62:BE62,AZ62)>0,1/COUNTIF(AZ62:AZ62,AZ62),0),IF(COUNTIF(BF62:BF62,BA62)>0,1/COUNTIF(BA62:BA62,BA62),0),IF(COUNTIF(BG62:BG62,BB62)>0,1/COUNTIF(BB62:BB62,BB62),0),IF(COUNTIF(BH62:BH62,BC62)>0,1/COUNTIF(BC62:BC62,BC62),0))) ->  | U62: / | V62: =COUNTA(BE62:BH62) -> 1 | Y62: =P62 -> 0 | AZ62: =P62 -> 0 | BD62: 9 | BE62: =CP62 -> 6.86 | CK62: Bruttobetrag | CP62: 6.86 | CT62: 1 | CU62: / | CV62: 1 | CY62: =CP62 -> 6.86
C71: 2. | D71: Umsatzsteuer: Ergänze die fehlenden Begriffe in der folgenden Aussage zum Thema Umsatzsteuer! (7 Punkte) | Y71: =G73 -> 0 | AS71: F | AT71: =COUNTA($AS$4:AS71) -> 2 | AU71: =SUM(T72:T75) -> 0 | AV71: / | AW71: =SUM(V72:V75) -> 7 | AX71: =MID(GK,FIND("(",GK,1)+1,(FIND(")",GK,1)-FIND("(",GK,1)-1)) -> GK4 | BE71: 1 | BF71: 2 | BG71: 3 | BH71: 4 | CC71: 1. | CD71: Umsatzsteuer: Ergänze die fehlenden Begriffe in der folgenden Aussage zum Thema Umsatzsteuer! (7 Punkte) | CY71: =CG73 -> Bruttowert
D72: Unter dem | J72: versteht man den | Q72: Umsatzsteuer. | T72: =IF(AND(G72="",N72="",P72=""),"",SUM(IF(COUNTIF(BE72:BE72,AZ72)>0,1/COUNTIF(AZ72:AZ72,AZ72),0),IF(COUNTIF(BF72:BF72,BA72)>0,1/COUNTIF(BA72:BA72,BA72),0),IF(COUNTIF(BG72:BG72,BB72)>0,1/COUNTIF(BB72:BB72,BB72),0),IF(COUNTIF(BH72:BH72,BC72)>0,1/COUNTIF(BC72:BC72,BC72),0))) ->  | U72: / | V72: =COUNTA(BE72:BH72) -> 3 | Y72: =N73 -> 0 | AZ72: =G72 -> 0 | BA72: =N72 -> 0 | BB72: =P72 -> 0 | BD72: 1 | BE72: =CG72 -> Nettowert | BF72: =CN72 -> Preis | BG72: =CP72 -> ohne | CD72: Unter dem | CG72: Nettowert | CJ72: versteht man den | CN72: Preis | CP72: ohne | CQ72: Umsatzsteuer. | CT72: 3 | CU72: / | CV72: 3 | CY72: =CN73 -> Preis
D73: Unter dem | J73: versteht man den | Q73: Umsatzsteuer (10%, | T73: =IF(AND(G73="",N73="",P73=""),"",SUM(IF(COUNTIF(BE73:BE73,AZ73)>0,1/COUNTIF(AZ73:AZ73,AZ73),0),IF(COUNTIF(BF73:BF73,BA73)>0,1/COUNTIF(BA73:BA73,BA73),0),IF(COUNTIF(BG73:BG73,BB73)>0,1/COUNTIF(BB73:BB73,BB73),0),IF(COUNTIF(BH73:BH73,BC73)>0,1/COUNTIF(BC73:BC73,BC73),0))) ->  | U73: / | V73: =COUNTA(BE73:BH73) -> 3 | Y73: =P73 -> 0 | AZ73: =G73 -> 0 | BA73: =N73 -> 0 | BB73: =P73 -> 0 | BD73: 2 | BE73: =CG73 -> Bruttowert | BF73: =CN73 -> Preis | BG73: =CP73 -> mit | CD73: Unter dem | CG73: Bruttowert | CJ73: versteht man den | CN73: Preis | CP73: mit | CQ73: Umsatzsteuer (10%, | CT73: 3 | CU73: / | CV73: 3 | CY73: =CP73 -> mit
D74: 13% oder 20% des | J74: ). | T74: =IF(H74="","",SUM(IF(COUNTIF(BE74:BE74,AZ74)>0,1/COUNTIF(AZ74:AZ74,AZ74),0),IF(COUNTIF(BF74:BF74,BA74)>0,1/COUNTIF(BA74:BA74,BA74),0),IF(COUNTIF(BG74:BG74,BB74)>0,1/COUNTIF(BB74:BB74,BB74),0),IF(COUNTIF(BH74:BH74,BC74)>0,1/COUNTIF(BC74:BC74,BC74),0))) ->  | U74: / | V74: =COUNTA(BE74:BH74) -> 1 | Y74: =H74 -> 0 | AZ74: =H74 -> 0 | BD74: 3 | BE74: =CH74 -> Nettowertes | CD74: 13% oder 20% des | CH74: Nettowertes | CJ74: ). | CT74: 1 | CU74: / | CV74: 1 | CY74: =CH74 -> Nettowertes
C76: 3. | D76: Berechnung der Umsatzsteuer | AS76: F | AT76: =COUNTA($AS$4:AS76) -> 3 | AU76: =SUM(T105:T118) -> 0 | AV76: / | AW76: =SUM(V105:V118) -> 9 | AX76: =MID(GK,FIND("(",GK,1)+1,(FIND(")",GK,1)-FIND("(",GK,1)-1)) -> GK4 | CC76: 4. | CD76: Berechnung der Umsatzsteuer
D77: a. | E77: Mit dem ermäßigten Steuersatz für z.B. Kino, lebende Tier, Wein , Fertigfutter, Düngemittel, … | CD77: c. | CE77: Mit dem ermäßigten Ssteuersatz für z.B. Kino, lebende Tier, Wein , Fertigfutter, Düngemittel, …
E78: Wie hoch ist der ermäßigte Steuersatz, der hier zur Anwendung kommt? (1 Punkt) | CE78: Wie hoch ist der Normalsteuersatz? (1 Punkt)
T79: =IF(E79="","",SUM(IF(COUNTIF(BE79:BE79,AZ79)>0,1/COUNTIF(AZ79:AZ79,AZ79),0),IF(COUNTIF(BF79:BF79,BA79)>0,1/COUNTIF(BA79:BA79,BA79),0),IF(COUNTIF(BG79:BG79,BB79)>0,1/COUNTIF(BB79:BB79,BB79),0),IF(COUNTIF(BH79:BH79,BC79)>0,1/COUNTIF(BC79:BC79,BC79),0))) ->  | U79: / | V79: =COUNTA(BE79:BH79) -> 1 | Y79: =E79 -> 0 | AZ79: =E79 -> 0 | BD79: 10 | BE79: =CE79 -> 0.13 | CE79: 0.13 | CT79: 1 | CU79: / | CV79: 1 | CY79: =CE79 -> 0.13
D81: b. | E81: Berechne die Umsatzsteuer (USt) und den Bruttopreis für folgende Artikel: | CD81: d. | CE81: Berechne die Umsatzsteuer (USt) und den Bruttopreis für folgende Artikel:
E82: Achtung du musst deine Ergebnisse auf 2 Kommastellen (kaufmännisch) ruden, so wie du es in Mathematik gelernt hast! ANSONSTEN WIRDT DEIN ERGEBNIS ALS FALSCH GEWERTET!!! | CE82: Achtung du musst deine Ergebnisse auf 2 Kommastellen (kaufmännisch) ruden, so wie du es in Mathematik gelernt hast! ANSONSTEN WIRDT DEIN ERGEBNIS ALS FALSCH GEWERTET!!!
H84: Kinokarten | J84: Saatgut | N84: Fertigfutter | Q84: Heu | Y84: Ust | Z84: Brutto | CH84: Kinokarten | CJ84: Saatgut | CN84: Fertigfutter | CQ84: Heu | CY84: Ust | CZ84: Brutto | DL84: UST_13 | DM84: 1 | DN84: 2 | DO84: 3 | DP84: 4 | DQ84: 5 | DR84: 6 | DS84: 7 | DT84: 8 | DU84: 9 | DV84: 10 | DW84: 11 | DX84: 12 | DY84: 13 | DZ84: 14 | EA84: 15 | EB84: 16 | EC84: 17 | ED84: 18 | EE84: 19 | EF84: 20 | EG84: 21 | EH84: 22 | EI84: 23 | EJ84: 24 | EK84: 25 | EL84: 26 | EM84: 27 | EN84: 28 | EO84: 29 | EP84: 30
H85: ↓ | J85: ↓ | N85: ↓ | Q85: ↓ | Y85: =H88 -> 0 | Z85: =H89 -> 0 | CH85: ↓ | CJ85: ↓ | CN85: ↓ | CQ85: ↓ | CY85: =CH88 -> 3.77 | CZ85: =CH89 -> 32.77 | DM85: 1 | DN85: 0.95 | DO85: 1.2 | DP85: 1.14 | DQ85: 0.75 | DR85: 0.88 | DS85: 1.12 | DT85: 1.35 | DU85: 0.9 | DV85: 0.83 | DW85: 0.92 | DX85: 1.05 | DY85: 1.03 | DZ85: 0.97 | EA85: 1.19 | EB85: 0.89 | EC85: 0.71 | ED85: 1.54 | EE85: 1.42 | EF85: 0.94 | EG85: 0.82 | EH85: 1.18 | EI85: 1.28 | EJ85: 1.38 | EK85: 0.76 | EL85: 0.93 | EM85: 1.21 | EN85: 1.47 | EO85: 1.16 | EP85: 0.94
E86: Preis excl. Ust | H86: =IF(OR($W$1="",TYPE(VLOOKUP(H84,UST_13,$W$1+1,0))=16),"",VLOOKUP(H84,UST_13,$W$1+1,0)) -> 29 | J86: =IF(OR($W$1="",TYPE(VLOOKUP(J84,UST_13,$W$1+1,0))=16),"",VLOOKUP(J84,UST_13,$W$1+1,0)) -> 2339 | L86: =IF(OR($W$1="",TYPE(VLOOKUP(L84,UST_13,$W$1+1,0))=16),"",VLOOKUP(L84,UST_13,$W$1+1,0)) ->  | N86: =IF(OR($W$1="",TYPE(VLOOKUP(N84,UST_13,$W$1+1,0))=16),"",VLOOKUP(N84,UST_13,$W$1+1,0)) -> 1388.5 | Q86: =IF(OR($W$1="",TYPE(VLOOKUP(Q84,UST_13,$W$1+1,0))=16),"",VLOOKUP(Q84,UST_13,$W$1+1,0)) -> 870.7 | Y86: =J88 -> 0 | Z86: =J89 -> 0 | CE86: Preis excl. Ust | CH86: =IF(OR($CW$1="",TYPE(VLOOKUP(CH84,UST_13,$CW$1+1,0))=16),"",VLOOKUP(CH84,UST_13,$CW$1+1,0)) -> 29 | CJ86: =IF(OR($CW$1="",TYPE(VLOOKUP(CJ84,UST_13,$CW$1+1,0))=16),"",VLOOKUP(CJ84,UST_13,$CW$1+1,0)) -> 2339 | CL86: =IF(OR($CW$1="",TYPE(VLOOKUP(CL84,UST_13,$CW$1+1,0))=16),"",VLOOKUP(CL84,UST_13,$CW$1+1,0)) ->  | CN86: =IF(OR($CW$1="",TYPE(VLOOKUP(CN84,UST_13,$CW$1+1,0))=16),"",VLOOKUP(CN84,UST_13,$CW$1+1,0)) -> 1388.5 | CQ86: =IF(OR($CW$1="",TYPE(VLOOKUP(CQ84,UST_13,$CW$1+1,0))=16),"",VLOOKUP(CQ84,UST_13,$CW$1+1,0)) -> 870.7 | CY86: =CJ88 -> 304.07 | CZ86: =CJ89 -> 2643.07 | DL86: =CH84 -> Kinokarten | DM86: 30.8 | DN86: =ROUND($DM86*DN$113,1) -> 29.3 | DO86: 37 | DP86: 35.1 | DQ86: 23.1 | DR86: 27.1 | DS86: 34.5 | DT86: 41.6 | DU86: 27.7 | DV86: 25.6 | DW86: 28.3 | DX86: 32.3 | DY86: 31.7 | DZ86: 29.9 | EA86: 36.7 | EB86: 27.4 | EC86: 21.9 | ED86: 47.4 | EE86: 43.7 | EF86: 29 | EG86: 25.3 | EH86: 36.3 | EI86: 39.4 | EJ86: 42.5 | EK86: 23.4 | EL86: 28.6 | EM86: 37.3 | EN86: 45.3 | EO86: 35.7 | EP86: 29
E88: Ust | T88: =IF(AND(H88="",J88="",N88="",Q88=""),"",SUM(IF(COUNTIF(BE88:BE88,AZ88)>0,1/COUNTIF(AZ88:AZ88,AZ88),0),IF(COUNTIF(BF88:BF88,BA88)>0,1/COUNTIF(BA88:BA88,BA88),0),IF(COUNTIF(BG88:BG88,BB88)>0,1/COUNTIF(BB88:BB88,BB88),0),IF(COUNTIF(BH88:BH88,BC88)>0,1/COUNTIF(BC88:BC88,BC88),0))) ->  | U88: / | V88: =COUNTA(BE88:BH88) -> 4 | Y88: =N88 -> 0 | Z88: =N89 -> 0 | AZ88: =H88 -> 0 | BA88: =J88 -> 0 | BB88: =N88 -> 0 | BC88: =Q88 -> 0 | BD88: 11 | BE88: =CH88 -> 3.77 | BF88: =CJ88 -> 304.07 | BG88: =CN88 -> 180.51 | BH88: =CQ88 -> 113.19 | CE88: Ust | CH88: =ROUND(CH86*$CE$79,2) -> 3.77 | CJ88: =ROUND(CJ86*$CE$79,2) -> 304.07 | CL88: =ROUND(CL86*$CE$79,2) ->  | CN88: =ROUND(CN86*$CE$79,2) -> 180.51 | CQ88: =ROUND(CQ86*$CE$79,2) -> 113.19 | CT88: 4 | CU88: / | CV88: 4 | CY88: =CN88 -> 180.51 | CZ88: =CN89 -> 1569.01 | DL88: =CJ84 -> Saatgut | DM88: 2488.3 | DN88: =ROUND($DM88*DN$113,1) -> 2363.9 | DO88: 2986 | DP88: 2836.7 | DQ88: 1866.2 | DR88: 2189.7 | DS88: 2786.9 | DT88: 3359.2 | DU88: 2239.5 | DV88: 2065.3 | DW88: 2289.2 | DX88: =ROUND($DM88*DX$113,1) -> 2612.7 | DY88: 2562.9 | DZ88: 2413.7 | EA88: 2961.1 | EB88: 2214.6 | EC88: 1766.7 | ED88: 3832 | EE88: 3533.4 | EF88: 2339 | EG88: 2040.4 | EH88: =ROUND($DM88*EH$113,1) -> 2936.2 | EI88: 3185 | EJ88: 3433.9 | EK88: 1891.1 | EL88: 2314.1 | EM88: 3010.8 | EN88: 3657.8 | EO88: 2886.4 | EP88: 2339
E89: Preis inkl. Ust | T89: =IF(AND(H89="",J89="",N89="",Q89=""),"",SUM(IF(COUNTIF(BE89:BE89,AZ89)>0,1/COUNTIF(AZ89:AZ89,AZ89),0),IF(COUNTIF(BF89:BF89,BA89)>0,1/COUNTIF(BA89:BA89,BA89),0),IF(COUNTIF(BG89:BG89,BB89)>0,1/COUNTIF(BB89:BB89,BB89),0),IF(COUNTIF(BH89:BH89,BC89)>0,1/COUNTIF(BC89:BC89,BC89),0))) ->  | U89: / | V89: =COUNTA(BE89:BH89) -> 4 | Y89: =Q88 -> 0 | Z89: =Q89 -> 0 | AZ89: =H89 -> 0 | BA89: =J89 -> 0 | BB89: =N89 -> 0 | BC89: =Q89 -> 0 | BD89: 15 | BE89: =CH89 -> 32.77 | BF89: =CJ89 -> 2643.07 | BG89: =CN89 -> 1569.01 | BH89: =CQ89 -> 983.89 | CE89: Preis inkl. Ust | CH89: =ROUND(SUM(CH86:CI88),2) -> 32.77 | CJ89: =ROUND(SUM(CJ86:CK88),2) -> 2643.07 | CL89: =ROUND(SUM(CL86:CM88),2) ->  | CN89: =ROUND(SUM(CN86:CP88),2) -> 1569.01 | CQ89: =ROUND(SUM(CQ86:CR88),2) -> 983.89 | CT89: 4 | CU89: / | CV89: 4 | CY89: =CQ88 -> 113.19 | CZ89: =CQ89 -> 983.89 | DL89: =CN84 -> Fertigfutter | DM89: 1477.1 | DN89: 1403.2 | DO89: 1772.5 | DP89: 1683.9 | DQ89: 1107.8 | DR89: 1299.8 | DS89: 1654.4 | DT89: 1994.1 | DU89: 1329.4 | DV89: 1226 | DW89: 1358.9 | DX89: 1551 | DY89: 1521.4 | DZ89: 1432.8 | EA89: 1757.7 | EB89: 1314.6 | EC89: 1048.7 | ED89: 2274.7 | EE89: 2097.5 | EF89: 1388.5 | EG89: 1211.2 | EH89: 1743 | EI89: 1890.7 | EJ89: 2038.4 | EK89: 1122.6 | EL89: 1373.7 | EM89: 1787.3 | EN89: 2171.3 | EO89: 1713.4 | EP89: 1388.5
DL90: =CQ84 -> Heu | DM90: 926.3 | DN90: 880 | DO90: 1111.6 | DP90: 1056 | DQ90: 694.7 | DR90: 815.1 | DS90: 1037.5 | DT90: 1250.5 | DU90: 833.7 | DV90: 768.8 | DW90: 852.2 | DX90: 972.6 | DY90: 954.1 | DZ90: 898.5 | EA90: 1102.3 | EB90: 824.4 | EC90: 657.7 | ED90: 1426.5 | EE90: 1315.3 | EF90: 870.7 | EG90: 759.6 | EH90: 1093 | EI90: 1185.7 | EJ90: 1278.3 | EK90: 704 | EL90: 861.5 | EM90: 1120.8 | EN90: 1361.7 | EO90: 1074.5 | EP90: 870.7
D91: c. | E91: Mit dem ermäßigten Steuersatz für z.B. Lebensmittel, Bücher, Zeitschriften, Honig, Eier, Zucker, … | CD91: e. | CE91: Mit dem ermäßigten Ssteuersatz für z.B. Lebensmittel, Bücher, Zeitschriften, Honig, Eier, Zucker, …
E92: Wie hoch ist der ermäßigte Steuersatz, der hier zur Anwendung kommt? (1 Punkt) | CE92: Wie hoch ist der Normalsteuersatz? (1 Punkt)
T93: =IF(E93="","",SUM(IF(COUNTIF(BE93:BE93,AZ93)>0,1/COUNTIF(AZ93:AZ93,AZ93),0),IF(COUNTIF(BF93:BF93,BA93)>0,1/COUNTIF(BA93:BA93,BA93),0),IF(COUNTIF(BG93:BG93,BB93)>0,1/COUNTIF(BB93:BB93,BB93),0),IF(COUNTIF(BH93:BH93,BC93)>0,1/COUNTIF(BC93:BC93,BC93),0))) ->  | U93: / | V93: =COUNTA(BE93:BH93) -> 1 | Y93: =E93 -> 0 | AZ93: =E93 -> 0 | BD93: 19 | BE93: =CE93 -> 0.1 | CE93: 0.1 | CT93: 1 | CU93: / | CV93: 1 | CY93: =CE93 -> 0.1
D95: d. | E95: Berechne die Umsatzsteuer (USt) und den Bruttopreis für folgende Artikel: | CD95: f. | CE95: Berechne die Umsatzsteuer (USt) und den Bruttopreis für folgende Artikel:
E96: Achtung du musst deine Ergebnisse auf 2 Kommastellen (kaufmännisch) ruden, so wie du es in Mathematik gelernt hast! ANSONSTEN WIRDT DEIN ERGEBNIS ALS FALSCH GEWERTET!!! | CE96: Achtung du musst deine Ergebnisse auf 2 Kommastellen (kaufmännisch) ruden, so wie du es in Mathematik gelernt hast! ANSONSTEN WIRDT DEIN ERGEBNIS ALS FALSCH GEWERTET!!!
H98: Honig | J98: Milchlieferung | N98: Getreidelieferung | Q98: Gemüse | Y98: Ust | Z98: Brutto | CH98: Honig | CJ98: Milchlieferung | CN98: Getreidelieferung | CQ98: Gemüse | CY98: Ust | CZ98: Brutto | DL98: UST_10 | DM98: 1 | DN98: 2 | DO98: 3 | DP98: 4 | DQ98: 5 | DR98: 6 | DS98: 7 | DT98: 8 | DU98: 9 | DV98: 10 | DW98: 11 | DX98: 12 | DY98: 13 | DZ98: 14 | EA98: 15 | EB98: 16 | EC98: 17 | ED98: 18 | EE98: 19 | EF98: 20 | EG98: 21 | EH98: 22 | EI98: 23 | EJ98: 24 | EK98: 25 | EL98: 26 | EM98: 27 | EN98: 28 | EO98: 29 | EP98: 30
H99: ↓ | J99: ↓ | N99: ↓ | Q99: ↓ | Y99: =H102 -> 0 | Z99: =H103 -> 0 | CH99: ↓ | CJ99: ↓ | CN99: ↓ | CQ99: ↓ | CY99: =CH102 -> 2.7 | CZ99: =CH103 -> 29.7 | DM99: 1 | DN99: 0.95 | DO99: 1.2 | DP99: 1.14 | DQ99: 0.75 | DR99: 0.88 | DS99: 1.12 | DT99: 1.35 | DU99: 0.9 | DV99: 0.83 | DW99: 0.92 | DX99: 1.05 | DY99: 1.03 | DZ99: 0.97 | EA99: 1.19 | EB99: 0.89 | EC99: 0.71 | ED99: 1.54 | EE99: 1.42 | EF99: 0.94 | EG99: 0.82 | EH99: 1.18 | EI99: 1.28 | EJ99: 1.38 | EK99: 0.76 | EL99: 0.93 | EM99: 1.21 | EN99: 1.47 | EO99: 1.16 | EP99: 0.94
E100: Preis excl. Ust | H100: =IF(OR($W$1="",TYPE(VLOOKUP(H98,UST_10,$W$1+1,0))=16),"",VLOOKUP(H98,UST_10,$W$1+1,0)) -> 27 | J100: =IF(OR($W$1="",TYPE(VLOOKUP(J98,UST_10,$W$1+1,0))=16),"",VLOOKUP(J98,UST_10,$W$1+1,0)) -> 5781.4 | L100: =IF(OR($W$1="",TYPE(VLOOKUP(L98,UST_10,$W$1+1,0))=16),"",VLOOKUP(L98,UST_10,$W$1+1,0)) ->  | N100: =IF(OR($W$1="",TYPE(VLOOKUP(N98,UST_10,$W$1+1,0))=16),"",VLOOKUP(N98,UST_10,$W$1+1,0)) -> 7679.4 | Q100: =IF(OR($W$1="",TYPE(VLOOKUP(Q98,UST_10,$W$1+1,0))=16),"",VLOOKUP(Q98,UST_10,$W$1+1,0)) -> 7.1 | Y100: =J102 -> 0 | Z100: =J103 -> 0 | CE100: Preis excl. Ust | CH100: =IF(OR($CW$1="",TYPE(VLOOKUP(CH98,UST_10,$CW$1+1,0))=16),"",VLOOKUP(CH98,UST_10,$CW$1+1,0)) -> 27 | CJ100: =IF(OR($CW$1="",TYPE(VLOOKUP(CJ98,UST_10,$CW$1+1,0))=16),"",VLOOKUP(CJ98,UST_10,$CW$1+1,0)) -> 5781.4 | CL100: =IF(OR($CW$1="",TYPE(VLOOKUP(CL98,UST_10,$CW$1+1,0))=16),"",VLOOKUP(CL98,UST_10,$CW$1+1,0)) ->  | CN100: =IF(OR($CW$1="",TYPE(VLOOKUP(CN98,UST_10,$CW$1+1,0))=16),"",VLOOKUP(CN98,UST_10,$CW$1+1,0)) -> 7679.4 | CQ100: =IF(OR($CW$1="",TYPE(VLOOKUP(CQ98,UST_10,$CW$1+1,0))=16),"",VLOOKUP(CQ98,UST_10,$CW$1+1,0)) -> 7.1 | CY100: =CJ102 -> 578.14 | CZ100: =CJ103 -> 6359.54 | DL100: =CH98 -> Honig | DM100: 28.7 | DN100: =ROUND($DM100*DN$113,1) -> 27.3 | DO100: 34.4 | DP100: 32.7 | DQ100: 21.5 | DR100: 25.3 | DS100: 32.1 | DT100: 38.7 | DU100: 25.8 | DV100: 23.8 | DW100: 26.4 | DX100: 30.1 | DY100: 29.6 | DZ100: 27.8 | EA100: 34.2 | EB100: 25.5 | EC100: 20.4 | ED100: 44.2 | EE100: 40.8 | EF100: 27 | EG100: 23.5 | EH100: 33.9 | EI100: 36.7 | EJ100: 39.6 | EK100: 21.8 | EL100: 26.7 | EM100: 34.7 | EN100: 42.2 | EO100: 33.3 | EP100: 27
E102: Ust | T102: =IF(AND(H102="",J102="",N102="",Q102=""),"",SUM(IF(COUNTIF(BE102:BE102,AZ102)>0,1/COUNTIF(AZ102:AZ102,AZ102),0),IF(COUNTIF(BF102:BF102,BA102)>0,1/COUNTIF(BA102:BA102,BA102),0),IF(COUNTIF(BG102:BG102,BB102)>0,1/COUNTIF(BB102:BB102,BB102),0),IF(COUNTIF(BH102:BH102,BC102)>0,1/COUNTIF(BC102:BC102,BC102),0))) ->  | U102: / | V102: =COUNTA(BE102:BH102) -> 4 | Y102: =N102 -> 0 | Z102: =N103 -> 0 | AZ102: =H102 -> 0 | BA102: =J102 -> 0 | BB102: =N102 -> 0 | BC102: =Q102 -> 0 | BD102: 20 | BE102: =CH102 -> 2.7 | BF102: =CJ102 -> 578.14 | BG102: =CN102 -> 767.94 | BH102: =CQ102 -> 0.71 | CE102: Ust | CH102: =ROUND(CH100*$CE$93,2) -> 2.7 | CJ102: =ROUND(CJ100*$CE$93,2) -> 578.14 | CL102: =ROUND(CL100*$CE$93,2) ->  | CN102: =ROUND(CN100*$CE$93,2) -> 767.94 | CQ102: =ROUND(CQ100*$CE$93,2) -> 0.71 | CT102: 4 | CU102: / | CV102: 4 | CY102: =CN102 -> 767.94 | CZ102: =CN103 -> 8447.34 | DL102: =CJ98 -> Milchlieferung | DM102: 6150.4 | DN102: =ROUND($DM102*DN$113,1) -> 5842.9 | DO102: 7380.5 | DP102: 7011.5 | DQ102: 4612.8 | DR102: 5412.4 | DS102: 6888.4 | DT102: 8303 | DU102: 5535.4 | DV102: 5104.8 | DW102: 5658.4 | DX102: =ROUND($DM102*DX$113,1) -> 6457.9 | DY102: 6334.9 | DZ102: 5965.9 | EA102: 7319 | EB102: 5473.9 | EC102: 4366.8 | ED102: 9471.6 | EE102: 8733.6 | EF102: 5781.4 | EG102: 5043.3 | EH102: =ROUND($DM102*EH$113,1) -> 7257.5 | EI102: 7872.5 | EJ102: 8487.6 | EK102: 4674.3 | EL102: 5719.9 | EM102: 7442 | EN102: 9041.1 | EO102: 7134.5 | EP102: 5781.4
E103: Preis inkl. Ust | T103: =IF(AND(H103="",J103="",N103="",Q103=""),"",SUM(IF(COUNTIF(BE103:BE103,AZ103)>0,1/COUNTIF(AZ103:AZ103,AZ103),0),IF(COUNTIF(BF103:BF103,BA103)>0,1/COUNTIF(BA103:BA103,BA103),0),IF(COUNTIF(BG103:BG103,BB103)>0,1/COUNTIF(BB103:BB103,BB103),0),IF(COUNTIF(BH103:BH103,BC103)>0,1/COUNTIF(BC103:BC103,BC103),0))) ->  | U103: / | V103: =COUNTA(BE103:BH103) -> 4 | Y103: =Q102 -> 0 | Z103: =Q103 -> 0 | AZ103: =H103 -> 0 | BA103: =J103 -> 0 | BB103: =N103 -> 0 | BC103: =Q103 -> 0 | BD103: 24 | BE103: =CH103 -> 29.7 | BF103: =CJ103 -> 6359.54 | BG103: =CN103 -> 8447.34 | BH103: =CQ103 -> 7.81 | CE103: Preis inkl. Ust | CH103: =ROUND(SUM(CH100:CI102),2) -> 29.7 | CJ103: =ROUND(SUM(CJ100:CK102),2) -> 6359.54 | CL103: =ROUND(SUM(CL100:CM102),2) ->  | CN103: =ROUND(SUM(CN100:CP102),2) -> 8447.34 | CQ103: =ROUND(SUM(CQ100:CR102),2) -> 7.81 | CT103: 4 | CU103: / | CV103: 4 | CY103: =CQ102 -> 0.71 | CZ103: =CQ103 -> 7.81 | DL103: =CN98 -> Getreidelieferung | DM103: 8169.6 | DN103: 7761.1 | DO103: 9803.5 | DP103: 9313.3 | DQ103: 6127.2 | DR103: 7189.2 | DS103: 9150 | DT103: 11029 | DU103: 7352.6 | DV103: 6780.8 | DW103: 7516 | DX103: 8578.1 | DY103: 8414.7 | DZ103: 7924.5 | EA103: 9721.8 | EB103: 7270.9 | EC103: 5800.4 | ED103: 12581.2 | EE103: 11600.8 | EF103: 7679.4 | EG103: 6699.1 | EH103: 9640.1 | EI103: 10457.1 | EJ103: 11274 | EK103: 6208.9 | EL103: 7597.7 | EM103: 9885.2 | EN103: 12009.3 | EO103: 9476.7 | EP103: 7679.4
DL104: =CQ98 -> Gemüse | DM104: 7.5 | DN104: 7.1 | DO104: 9 | DP104: 8.6 | DQ104: 5.6 | DR104: 6.6 | DS104: 8.4 | DT104: 10.1 | DU104: 6.8 | DV104: 6.2 | DW104: 6.9 | DX104: 7.9 | DY104: 7.7 | DZ104: 7.3 | EA104: 8.9 | EB104: 6.7 | EC104: 5.3 | ED104: 11.6 | EE104: 10.7 | EF104: 7.1 | EG104: 6.2 | EH104: 8.9 | EI104: 9.6 | EJ104: 10.4 | EK104: 5.7 | EL104: 7 | EM104: 9.1 | EN104: 11 | EO104: 8.7 | EP104: 7.1
D105: e. | E105: Mit dem Normalsteuersatz | CD105: a. | CE105: Mit dem Normalsteuersatz
E106: Wie hoch ist der Normalsteuersatz? (1 Punkt) | CE106: Wie hoch ist der Normalsteuersatz? (1 Punkt)
T107: =IF(E107="","",SUM(IF(COUNTIF(BE107:BE107,AZ107)>0,1/COUNTIF(AZ107:AZ107,AZ107),0),IF(COUNTIF(BF107:BF107,BA107)>0,1/COUNTIF(BA107:BA107,BA107),0),IF(COUNTIF(BG107:BG107,BB107)>0,1/COUNTIF(BB107:BB107,BB107),0),IF(COUNTIF(BH107:BH107,BC107)>0,1/COUNTIF(BC107:BC107,BC107),0))) ->  | U107: / | V107: =COUNTA(BE107:BH107) -> 1 | Y107: =E107 -> 0 | AZ107: =E107 -> 0 | BD107: 1 | BE107: =CE107 -> 0.2 | CE107: 0.2 | CT107: 1 | CU107: / | CV107: 1 | CY107: =CE107 -> 0.2
D109: f. | E109: Berechne die Umsatzsteuer (USt) und den Bruttopreis für folgende Artikel: | CD109: b. | CE109: Berechne die Umsatzsteuer (USt) und den Bruttopreis für folgende Artikel:
E110: Achtung du musst deine Ergebnisse auf 2 Kommastellen (kaufmännisch) ruden, so wie du es in Mathematik gelernt hast! ANSONSTEN WIRDT DEIN ERGEBNIS ALS FALSCH GEWERTET!!! | CE110: Achtung du musst deine Ergebnisse auf 2 Kommastellen (kaufmännisch) ruden, so wie du es in Mathematik gelernt hast! ANSONSTEN WIRDT DEIN ERGEBNIS ALS FALSCH GEWERTET!!!
H112: Tretroller | J112: T-Shirt | N112: Kappe | Q112: Pulsuhr | Y112: Ust | Z112: Brutto | CH112: Tretroller | CJ112: T-Shirt | CN112: Kappe | CQ112: Pulsuhr | CY112: Ust | CZ112: Brutto | DL112: UST_20 | DM112: 1 | DN112: 2 | DO112: 3 | DP112: 4 | DQ112: 5 | DR112: 6 | DS112: 7 | DT112: 8 | DU112: 9 | DV112: 10 | DW112: 11 | DX112: 12 | DY112: 13 | DZ112: 14 | EA112: 15 | EB112: 16 | EC112: 17 | ED112: 18 | EE112: 19 | EF112: 20 | EG112: 21 | EH112: 22 | EI112: 23 | EJ112: 24 | EK112: 25 | EL112: 26 | EM112: 27 | EN112: 28 | EO112: 29 | EP112: 30
H113: ↓ | J113: ↓ | N113: ↓ | Q113: ↓ | Y113: =H116 -> 0 | Z113: =H117 -> 0 | CH113: ↓ | CJ113: ↓ | CN113: ↓ | CQ113: ↓ | CY113: =CH116 -> 24.42 | CZ113: =CH117 -> 146.52 | DM113: 1 | DN113: 0.95 | DO113: 1.2 | DP113: 1.14 | DQ113: 0.75 | DR113: 0.88 | DS113: 1.12 | DT113: 1.35 | DU113: 0.9 | DV113: 0.83 | DW113: 0.92 | DX113: 1.05 | DY113: 1.03 | DZ113: 0.97 | EA113: 1.19 | EB113: 0.89 | EC113: 0.71 | ED113: 1.54 | EE113: 1.42 | EF113: 0.94 | EG113: 0.82 | EH113: 1.18 | EI113: 1.28 | EJ113: 1.38 | EK113: 0.76 | EL113: 0.93 | EM113: 1.21 | EN113: 1.47 | EO113: 1.16 | EP113: 0.94
E114: Preis excl. Ust | H114: =IF(OR($W$1="",TYPE(VLOOKUP(H112,UST_20,$W$1+1,0))=16),"",VLOOKUP(H112,UST_20,$W$1+1,0)) -> 122.1 | J114: =IF(OR($W$1="",TYPE(VLOOKUP(J112,UST_20,$W$1+1,0))=16),"",VLOOKUP(J112,UST_20,$W$1+1,0)) -> 64.8 | L114: =IF(OR($W$1="",TYPE(VLOOKUP(L112,UST_20,$W$1+1,0))=16),"",VLOOKUP(L112,UST_20,$W$1+1,0)) ->  | N114: =IF(OR($W$1="",TYPE(VLOOKUP(N112,UST_20,$W$1+1,0))=16),"",VLOOKUP(N112,UST_20,$W$1+1,0)) -> 20.6 | Q114: =IF(OR($W$1="",TYPE(VLOOKUP(Q112,UST_20,$W$1+1,0))=16),"",VLOOKUP(Q112,UST_20,$W$1+1,0)) -> 639.1 | Y114: =J116 -> 0 | Z114: =J117 -> 0 | CE114: Preis excl. Ust | CH114: =IF(OR($CW$1="",TYPE(VLOOKUP(CH112,UST_20,$CW$1+1,0))=16),"",VLOOKUP(CH112,UST_20,$CW$1+1,0)) -> 122.1 | CJ114: =IF(OR($CW$1="",TYPE(VLOOKUP(CJ112,UST_20,$CW$1+1,0))=16),"",VLOOKUP(CJ112,UST_20,$CW$1+1,0)) -> 64.8 | CL114: =IF(OR($CW$1="",TYPE(VLOOKUP(CL112,UST_20,$CW$1+1,0))=16),"",VLOOKUP(CL112,UST_20,$CW$1+1,0)) ->  | CN114: =IF(OR($CW$1="",TYPE(VLOOKUP(CN112,UST_20,$CW$1+1,0))=16),"",VLOOKUP(CN112,UST_20,$CW$1+1,0)) -> 20.6 | CQ114: =IF(OR($CW$1="",TYPE(VLOOKUP(CQ112,UST_20,$CW$1+1,0))=16),"",VLOOKUP(CQ112,UST_20,$CW$1+1,0)) -> 639.1 | CY114: =CJ116 -> 12.96 | CZ114: =CJ117 -> 77.76 | DL114: =CH112 -> Tretroller | DM114: 129.9 | DN114: =ROUND($DM114*DN$113,1) -> 123.4 | DO114: 155.9 | DP114: 148.1 | DQ114: 97.4 | DR114: 114.3 | DS114: 145.5 | DT114: 175.4 | DU114: 116.9 | DV114: 107.8 | DW114: 119.5 | DX114: 136.4 | DY114: 133.8 | DZ114: 126 | EA114: 154.6 | EB114: 115.6 | EC114: 92.2 | ED114: 200 | EE114: 184.5 | EF114: 122.1 | EG114: 106.5 | EH114: 153.3 | EI114: 166.3 | EJ114: 179.3 | EK114: 98.7 | EL114: 120.8 | EM114: 157.2 | EN114: 191 | EO114: 150.7 | EP114: 122.1
E116: Ust | T116: =IF(AND(H116="",J116="",N116="",Q116=""),"",SUM(IF(COUNTIF(BE116:BE116,AZ116)>0,1/COUNTIF(AZ116:AZ116,AZ116),0),IF(COUNTIF(BF116:BF116,BA116)>0,1/COUNTIF(BA116:BA116,BA116),0),IF(COUNTIF(BG116:BG116,BB116)>0,1/COUNTIF(BB116:BB116,BB116),0),IF(COUNTIF(BH116:BH116,BC116)>0,1/COUNTIF(BC116:BC116,BC116),0))) ->  | U116: / | V116: =COUNTA(BE116:BH116) -> 4 | Y116: =N116 -> 0 | Z116: =N117 -> 0 | AZ116: =H116 -> 0 | BA116: =J116 -> 0 | BB116: =N116 -> 0 | BC116: =Q116 -> 0 | BD116: 2 | BE116: =CH116 -> 24.42 | BF116: =CJ116 -> 12.96 | BG116: =CN116 -> 4.12 | BH116: =CQ116 -> 127.82 | CE116: Ust | CH116: =ROUND(CH114*$CE$107,2) -> 24.42 | CJ116: =ROUND(CJ114*$CE$107,2) -> 12.96 | CL116: =ROUND(CL114*$CE$107,2) ->  | CN116: =ROUND(CN114*$CE$107,2) -> 4.12 | CQ116: =ROUND(CQ114*$CE$107,2) -> 127.82 | CT116: 4 | CU116: / | CV116: 4 | CY116: =CN116 -> 4.12 | CZ116: =CN117 -> 24.72 | DL116: =CJ112 -> T-Shirt | DM116: 68.9 | DN116: =ROUND($DM116*DN$113,1) -> 65.5 | DO116: 82.7 | DP116: 78.5 | DQ116: 51.7 | DR116: 60.6 | DS116: 77.2 | DT116: 93 | DU116: 62 | DV116: 57.2 | DW116: 63.4 | DX116: =ROUND($DM116*DX$113,1) -> 72.3 | DY116: 71 | DZ116: 66.8 | EA116: 82 | EB116: 61.3 | EC116: 48.9 | ED116: 106.1 | EE116: 97.8 | EF116: 64.8 | EG116: 56.5 | EH116: =ROUND($DM116*EH$113,1) -> 81.3 | EI116: 88.2 | EJ116: 95.1 | EK116: 52.4 | EL116: 64.1 | EM116: 83.4 | EN116: 101.3 | EO116: 79.9 | EP116: 64.8
E117: Preis inkl. Ust | T117: =IF(AND(H117="",J117="",N117="",Q117=""),"",SUM(IF(COUNTIF(BE117:BE117,AZ117)>0,1/COUNTIF(AZ117:AZ117,AZ117),0),IF(COUNTIF(BF117:BF117,BA117)>0,1/COUNTIF(BA117:BA117,BA117),0),IF(COUNTIF(BG117:BG117,BB117)>0,1/COUNTIF(BB117:BB117,BB117),0),IF(COUNTIF(BH117:BH117,BC117)>0,1/COUNTIF(BC117:BC117,BC117),0))) ->  | U117: / | V117: =COUNTA(BE117:BH117) -> 4 | Y117: =Q116 -> 0 | Z117: =Q117 -> 0 | AZ117: =H117 -> 0 | BA117: =J117 -> 0 | BB117: =N117 -> 0 | BC117: =Q117 -> 0 | BD117: 6 | BE117: =CH117 -> 146.52 | BF117: =CJ117 -> 77.76 | BG117: =CN117 -> 24.72 | BH117: =CQ117 -> 766.92 | CE117: Preis inkl. Ust | CH117: =ROUND(SUM(CH114:CI116),2) -> 146.52 | CJ117: =ROUND(SUM(CJ114:CK116),2) -> 77.76 | CL117: =ROUND(SUM(CL114:CM116),2) ->  | CN117: =ROUND(SUM(CN114:CP116),2) -> 24.72 | CQ117: =ROUND(SUM(CQ114:CR116),2) -> 766.92 | CT117: 4 | CU117: / | CV117: 4 | CY117: =CQ116 -> 127.82 | CZ117: =CQ117 -> 766.92 | DL117: =CN112 -> Kappe | DM117: 21.9 | DN117: 20.8 | DO117: 26.3 | DP117: 25 | DQ117: 16.4 | DR117: 19.3 | DS117: 24.5 | DT117: 29.6 | DU117: 19.7 | DV117: 18.2 | DW117: 20.1 | DX117: 23 | DY117: 22.6 | DZ117: 21.2 | EA117: 26.1 | EB117: 19.5 | EC117: 15.5 | ED117: 33.7 | EE117: 31.1 | EF117: 20.6 | EG117: 18 | EH117: 25.8 | EI117: 28 | EJ117: 30.2 | EK117: 16.6 | EL117: 20.4 | EM117: 26.5 | EN117: 32.2 | EO117: 25.4 | EP117: 20.6
DL118: =CQ112 -> Pulsuhr | DM118: 679.9 | DN118: 645.9 | DO118: 815.9 | DP118: 775.1 | DQ118: 509.9 | DR118: 598.3 | DS118: 761.5 | DT118: 917.9 | DU118: 611.9 | DV118: 564.3 | DW118: 625.5 | DX118: 713.9 | DY118: 700.3 | DZ118: 659.5 | EA118: 809.1 | EB118: 605.1 | EC118: 482.7 | ED118: 1047 | EE118: 965.5 | EF118: 639.1 | EG118: 557.5 | EH118: 802.3 | EI118: 870.3 | EJ118: 938.3 | EK118: 516.7 | EL118: 632.3 | EM118: 822.7 | EN118: 999.5 | EO118: 788.7 | EP118: 639.1
C119: 4. | D119: Umsatzsteuer: Ergänze die fehlenden Begriffe in der folgenden Aussage zum Thema Umsatzsteuer! (5 Punkte) | AS119: F | AT119: =COUNTA($AS$4:AS119) -> 4 | AU119: =SUM(T120:T123) -> 0 | AV119: / | AW119: =SUM(V120:V123) -> 5 | AX119: =MID(GK,FIND("(",GK,1)+1,(FIND(")",GK,1)-FIND("(",GK,1)-1)) -> GK4 | CC119: 2. | CD119: Umsatzsteuer: Ergänze die fehlenden Begriffe in der folgenden Aussage zum Thema Umsatzsteuer! (5 Punkte)
D120: Grundsätzlich werden alle | L120: und sonstigen | R120: , die ein | T120: =IF(AND(I120="",P120=""),"",SUM(IF(COUNTIF(BE120:BE120,AZ120)>0,1/COUNTIF(AZ120:AZ120,AZ120),0),IF(COUNTIF(BF120:BF120,BA120)>0,1/COUNTIF(BA120:BA120,BA120),0),IF(COUNTIF(BG120:BG120,BB120)>0,1/COUNTIF(BB120:BB120,BB120),0),IF(COUNTIF(BH120:BH120,BC120)>0,1/COUNTIF(BC120:BC120,BC120),0))) ->  | U120: / | V120: =COUNTA(BE120:BH120) -> 2 | Y120: =I120 -> 0 | AZ120: =I120 -> 0 | BA120: =P120 -> 0 | BD120: 1 | BE120: =CI120 -> Lieferungen | BF120: =CP120 -> Leistungen | CD120: Grundsätzlich werden alle | CI120: Lieferungen | CL120: und sonstigen | CP120: Leistungen | CR120: , die ein | CT120: 2 | CU120: / | CV120: 2 | CY120: =CI120 -> Lieferungen
H121: in Österreich gegen | N121: im Rahmen seines | T121: =IF(AND(D121="",J121="",Q121=""),"",SUM(IF(COUNTIF(BE121:BE121,AZ121)>0,1/COUNTIF(AZ121:AZ121,AZ121),0),IF(COUNTIF(BF121:BF121,BA121)>0,1/COUNTIF(BA121:BA121,BA121),0),IF(COUNTIF(BG121:BG121,BB121)>0,1/COUNTIF(BB121:BB121,BB121),0),IF(COUNTIF(BH121:BH121,BC121)>0,1/COUNTIF(BC121:BC121,BC121),0))) ->  | U121: / | V121: =COUNTA(BE121:BH121) -> 3 | Y121: =P120 -> 0 | AZ121: =D121 -> 0 | BA121: =J121 -> 0 | BB121: =Q121 -> 0 | BD121: 2 | BE121: =CD121 -> Unternehmer | BF121: =CJ121 -> Bezahlung | BG121: =CQ121 -> Unternehmens | CD121: Unternehmer | CH121: in Österreich gegen | CJ121: Bezahlung | CN121: im Rahmen seines | CQ121: Unternehmens | CT121: 3 | CU121: / | CV121: 3 | CY121: =CP120 -> Leistungen
D122: erbringt, besteuert. | Y122: =D121 -> 0 | CD122: erbringt, besteuert. | CY122: =CD121 -> Unternehmer
Y123: =J121 -> 0 | CY123: =CJ121 -> Bezahlung
C124: 5. | D124: Berechne für die folgenden Preise den Umsatzsteuerbetrag mit dem Normalsteuersatz von 20%. (4 Punkte) | AS124: F | AT124: =COUNTA($AS$4:AS124) -> 5 | AU124: =SUM(T125:T150) -> 0 | AV124: / | AW124: =SUM(V125:V150) -> 4 | AX124: =MID(GK,FIND("(",GK,1)+1,(FIND(")",GK,1)-FIND("(",GK,1)-1)) -> GK4 | CC124: 6. | CD124: Berechne für die folgenden Preise den Umsatzsteuerbetrag mit dem Normalsteuersatz von 20%. (4 Punkte)
D125: Achtung du musst deine Ergebnisse auf 2 Kommastellen (kaufmännisch) ruden, so wie du es in Mathematik gelernt hast! ANSONSTEN WIRDT DEIN ERGEBNIS ALS FALSCH GEWERTET!!! | CD125: Achtung du musst deine Ergebnisse auf 2 Kommastellen (kaufmännisch) ruden, so wie du es in Mathematik gelernt hast! ANSONSTEN WIRDT DEIN ERGEBNIS ALS FALSCH GEWERTET!!!
D127: a. | CD127: a.
I131: USt = | T131: =IF(AND(J131=""),"",SUM(IF(COUNTIF(BE131:BE131,AZ131)>0,1/COUNTIF(AZ131:AZ131,AZ131),0),IF(COUNTIF(BF131:BF131,BA131)>0,1/COUNTIF(BA131:BA131,BA131),0),IF(COUNTIF(BG131:BG131,BB131)>0,1/COUNTIF(BB131:BB131,BB131),0),IF(COUNTIF(BH131:BH131,BC131)>0,1/COUNTIF(BC131:BC131,BC131),0))) ->  | U131: / | V131: =COUNTA(BE131:BH131) -> 1 | X131: =TEXT(IF(OR($W$1="",TYPE(VLOOKUP(DL168,UST_BSPS,$W$1+1,0))=16),"",VLOOKUP(DL168,UST_BSPS,$W$1+1,0)),"# ##0,00") -> 13,60 | Y131: =J131 -> 0 | AZ131: =J131 -> 0 | BD131: 1 | BE131: =CJ131 -> 2.27 | CI131: USst = | CJ131: =ROUND($CX131/(1+$CH$154)*CH$154,2) -> 2.27 | CT131: 1 | CU131: / | CV131: 1 | CX131: =TEXT(IF(OR($W$1="",TYPE(VLOOKUP(DL168,UST_BSPS,$W$1+1,0))=16),"",VLOOKUP(DL168,UST_BSPS,$W$1+1,0)),"# ##0,00") -> 13,60 | CY131: =CJ131 -> 2.27
D133: b. | CD133: b.
I137: USt = | T137: =IF(AND(J137=""),"",SUM(IF(COUNTIF(BE137:BE137,AZ137)>0,1/COUNTIF(AZ137:AZ137,AZ137),0),IF(COUNTIF(BF137:BF137,BA137)>0,1/COUNTIF(BA137:BA137,BA137),0),IF(COUNTIF(BG137:BG137,BB137)>0,1/COUNTIF(BB137:BB137,BB137),0),IF(COUNTIF(BH137:BH137,BC137)>0,1/COUNTIF(BC137:BC137,BC137),0))) ->  | U137: / | V137: =COUNTA(BE137:BH137) -> 1 | X137: =TEXT(IF(OR($W$1="",TYPE(VLOOKUP(DL171,UST_BSPS,$W$1+1,0))=16),"",VLOOKUP(DL171,UST_BSPS,$W$1+1,0)),"# ##0,00") -> 178,60 | Y137: =J137 -> 0 | AZ137: =J137 -> 0 | BD137: 2 | BE137: =CJ137 -> 29.77 | CI137: USst = | CJ137: =ROUND($CX137/(1+$CH$154)*CH$154,2) -> 29.77 | CT137: 1 | CU137: / | CV137: 1 | CX137: =TEXT(IF(OR($W$1="",TYPE(VLOOKUP(DL171,UST_BSPS,$W$1+1,0))=16),"",VLOOKUP(DL171,UST_BSPS,$W$1+1,0)),"# ##0,00") -> 178,60 | CY137: =CJ137 -> 29.77
D139: c. | CD139: c.
I143: USt = | T143: =IF(AND(J143=""),"",SUM(IF(COUNTIF(BE143:BE143,AZ143)>0,1/COUNTIF(AZ143:AZ143,AZ143),0),IF(COUNTIF(BF143:BF143,BA143)>0,1/COUNTIF(BA143:BA143,BA143),0),IF(COUNTIF(BG143:BG143,BB143)>0,1/COUNTIF(BB143:BB143,BB143),0),IF(COUNTIF(BH143:BH143,BC143)>0,1/COUNTIF(BC143:BC143,BC143),0))) ->  | U143: / | V143: =COUNTA(BE143:BH143) -> 1 | X143: =TEXT(IF(OR($W$1="",TYPE(VLOOKUP(DL174,UST_BSPS,$W$1+1,0))=16),"",VLOOKUP(DL174,UST_BSPS,$W$1+1,0)),"# ##0,00") -> 69,40 | Y143: =J143 -> 0 | AZ143: =J143 -> 0 | BD143: 3 | BE143: =CJ143 -> 11.57 | CI143: USst = | CJ143: =ROUND($CX143/(1+$CH$154)*CH$154,2) -> 11.57 | CT143: 1 | CU143: / | CV143: 1 | CX143: =TEXT(IF(OR($W$1="",TYPE(VLOOKUP(DL174,UST_BSPS,$W$1+1,0))=16),"",VLOOKUP(DL174,UST_BSPS,$W$1+1,0)),"# ##0,00") -> 69,40 | CY143: =CJ143 -> 11.57
D145: d. | CD145: d.
I149: USt = | T149: =IF(AND(J149=""),"",SUM(IF(COUNTIF(BE149:BE149,AZ149)>0,1/COUNTIF(AZ149:AZ149,AZ149),0),IF(COUNTIF(BF149:BF149,BA149)>0,1/COUNTIF(BA149:BA149,BA149),0),IF(COUNTIF(BG149:BG149,BB149)>0,1/COUNTIF(BB149:BB149,BB149),0),IF(COUNTIF(BH149:BH149,BC149)>0,1/COUNTIF(BC149:BC149,BC149),0))) ->  | U149: / | V149: =COUNTA(BE149:BH149) -> 1 | X149: =TEXT(IF(OR($W$1="",TYPE(VLOOKUP(DL177,UST_BSPS,$W$1+1,0))=16),"",VLOOKUP(DL177,UST_BSPS,$W$1+1,0)),"# ##0,00") -> 44,90 | Y149: =J149 -> 0 | AZ149: =J149 -> 0 | BD149: 4 | BE149: =CJ149 -> 7.48 | CI149: USst = | CJ149: =ROUND($CX149/(1+$CH$154)*CH$154,2) -> 7.48 | CT149: 1 | CU149: / | CV149: 1 | CX149: =TEXT(IF(OR($W$1="",TYPE(VLOOKUP(DL177,UST_BSPS,$W$1+1,0))=16),"",VLOOKUP(DL177,UST_BSPS,$W$1+1,0)),"# ##0,00") -> 44,90 | CY149: =CJ149 -> 7.48
C151: 6. | D151: Berechne für die folgenden Nettobeträge die Umsatzstuerbeträge bei einem Steuersatz von 20%, von 13% und von 10%. (9 Punkte) | AS151: F | AT151: =COUNTA($AS$4:AS151) -> 6 | AU151: =SUM(T152:T160) -> 0 | AV151: / | AW151: =SUM(V152:V160) -> 9 | AX151: =MID(GK,FIND("(",GK,1)+1,(FIND(")",GK,1)-FIND("(",GK,1)-1)) -> GK4 | CC151: 5. | CD151: Berechne für die folgenden Nettobeträge die Umsatzstuerbeträge bei einem Steuersatz von 20%, von 13% und von 10%. (9 Punkte)
D152: Achtung du musst deine Ergebnisse auf 2 Kommastellen (kaufmännisch) ruden, so wie du es in Mathematik gelernt hast! ANSONSTEN WIRDT DEIN ERGEBNIS ALS FALSCH GEWERTET!!! | CD152: Achtung du musst deine Ergebnisse auf 2 Kommastellen (kaufmännisch) ruden, so wie du es in Mathematik gelernt hast! ANSONSTEN WIRDT DEIN ERGEBNIS ALS FALSCH GEWERTET!!!
H154: 0.2 | J154: 0.13 | N154: 0.1 | CH154: 0.2 | CJ154: 0.13 | CN154: 0.1 | DL154: UST_BETR | DM154: 1 | DN154: 2 | DO154: 3 | DP154: 4 | DQ154: 5 | DR154: 6 | DS154: 7 | DT154: 8 | DU154: 9 | DV154: 10 | DW154: 11 | DX154: 12 | DY154: 13 | DZ154: 14 | EA154: 15 | EB154: 16 | EC154: Z | ED154: 18 | EE154: 19 | EF154: 20 | EG154: 21 | EH154: 22 | EI154: 23 | EJ154: 24 | EK154: 25 | EL154: 26 | EM154: 27 | EN154: 28 | EO154: 29 | EP154: 30
H155: ↓ | J155: ↓ | N155: ↓ | X155: 0.2 | Y155: 0.13 | Z155: 0.1 | CH155: ↓ | CJ155: ↓ | CN155: ↓ | CX155: 0.2 | CY155: 0.13 | CZ155: 0.1 | DM155: 1 | DN155: 0.95 | DO155: 1.2 | DP155: 1.14 | DQ155: 0.75 | DR155: 0.88 | DS155: 1.12 | DT155: 1.35 | DU155: 0.9 | DV155: 0.83 | DW155: 0.92 | DX155: 1.05 | DY155: 1.03 | DZ155: 0.97 | EA155: 1.19 | EB155: 0.89 | EC155: 0.71 | ED155: 1.54 | EE155: 1.42 | EF155: 0.94 | EG155: 0.82 | EH155: 1.18 | EI155: 1.28 | EJ155: 1.38 | EK155: 0.76 | EL155: 0.93 | EM155: 1.21 | EN155: 1.47 | EO155: 1.16 | EP155: 0.94
D157: =IF(OR($W$1="",TYPE(VLOOKUP(DL157,UST_BETR,$W$1+1,0))=16),"",VLOOKUP(DL157,UST_BETR,$W$1+1,0)) -> 606.3 | T157: =IF(AND(H157="",J157="",N157=""),"",SUM(IF(COUNTIF(BE157:BE157,AZ157)>0,1/COUNTIF(AZ157:AZ157,AZ157),0),IF(COUNTIF(BF157:BF157,BA157)>0,1/COUNTIF(BA157:BA157,BA157),0),IF(COUNTIF(BG157:BG157,BB157)>0,1/COUNTIF(BB157:BB157,BB157),0),IF(COUNTIF(BH157:BH157,BC157)>0,1/COUNTIF(BC157:BC157,BC157),0))) ->  | U157: / | V157: =COUNTA(BE157:BH157) -> 3 | X157: =H157 -> 0 | Y157: =J157 -> 0 | Z157: =N157 -> 0 | AZ157: =H157 -> 0 | BA157: =J157 -> 0 | BB157: =N157 -> 0 | BD157: 1 | BE157: =CH157 -> 121.26 | BF157: =CJ157 -> 78.82 | BG157: =CN157 -> 60.63 | CD157: =IF(OR($W$1="",TYPE(VLOOKUP(DL157,UST_BETR,$W$1+1,0))=16),"",VLOOKUP(DL157,UST_BETR,$W$1+1,0)) -> 606.3 | CH157: =ROUND($D157*CH$154,2) -> 121.26 | CJ157: =ROUND($D157*CJ$154,2) -> 78.82 | CL157: =ROUND($D157*CL$154,2) -> 0 | CN157: =ROUND($D157*CN$154,2) -> 60.63 | CT157: 3 | CU157: / | CV157: 3 | CX157: =CH157 -> 121.26 | CY157: =CJ157 -> 78.82 | CZ157: =CN157 -> 60.63 | DL157: 1 | DM157: 645 | DN157: =ROUND($DM157*DN$113,1) -> 612.8 | DO157: 774 | DP157: 735.3 | DQ157: 483.8 | DR157: 567.6 | DS157: 722.4 | DT157: 870.8 | DU157: 580.5 | DV157: 535.4 | DW157: 593.4 | DX157: =ROUND($DM157*DX$113,1) -> 677.3 | DY157: 664.4 | DZ157: 625.7 | EA157: 767.6 | EB157: 574.1 | EC157: 458 | ED157: 993.3 | EE157: 915.9 | EF157: 606.3 | EG157: 528.9 | EH157: =ROUND($DM157*EH$113,1) -> 761.1 | EI157: 825.6 | EJ157: 890.1 | EK157: 490.2 | EL157: 599.9 | EM157: 780.5 | EN157: 948.2 | EO157: 748.2 | EP157: 606.3
D158: =IF(OR($W$1="",TYPE(VLOOKUP(DL158,UST_BETR,$W$1+1,0))=16),"",VLOOKUP(DL158,UST_BETR,$W$1+1,0)) -> 2613.2 | T158: =IF(AND(H158="",J158="",N158=""),"",SUM(IF(COUNTIF(BE158:BE158,AZ158)>0,1/COUNTIF(AZ158:AZ158,AZ158),0),IF(COUNTIF(BF158:BF158,BA158)>0,1/COUNTIF(BA158:BA158,BA158),0),IF(COUNTIF(BG158:BG158,BB158)>0,1/COUNTIF(BB158:BB158,BB158),0),IF(COUNTIF(BH158:BH158,BC158)>0,1/COUNTIF(BC158:BC158,BC158),0))) ->  | U158: / | V158: =COUNTA(BE158:BH158) -> 3 | X158: =H158 -> 0 | Y158: =J158 -> 0 | Z158: =N158 -> 0 | AZ158: =H158 -> 0 | BA158: =J158 -> 0 | BB158: =N158 -> 0 | BD158: 4 | BE158: =CH158 -> 522.64 | BF158: =CJ158 -> 339.72 | BG158: =CN158 -> 261.32 | CD158: =IF(OR($W$1="",TYPE(VLOOKUP(DL158,UST_BETR,$W$1+1,0))=16),"",VLOOKUP(DL158,UST_BETR,$W$1+1,0)) -> 2613.2 | CH158: =ROUND($D158*CH$154,2) -> 522.64 | CJ158: =ROUND($D158*CJ$154,2) -> 339.72 | CL158: 0 | CN158: =ROUND($D158*CN$154,2) -> 261.32 | CT158: 3 | CU158: / | CV158: 3 | CX158: =CH158 -> 522.64 | CY158: =CJ158 -> 339.72 | CZ158: =CN158 -> 261.32 | DL158: 2 | DM158: 2780 | DN158: 2641 | DO158: 3336 | DP158: 3169.2 | DQ158: 2085 | DR158: 2446.4 | DS158: 3113.6 | DT158: 3753 | DU158: 2502 | DV158: 2307.4 | DW158: 2557.6 | DX158: 2919 | DY158: 2863.4 | DZ158: 2696.6 | EA158: 3308.2 | EB158: 2474.2 | EC158: 1973.8 | ED158: 4281.2 | EE158: 3947.6 | EF158: 2613.2 | EG158: 2279.6 | EH158: 3280.4 | EI158: 3558.4 | EJ158: 3836.4 | EK158: 2112.8 | EL158: 2585.4 | EM158: 3363.8 | EN158: 4086.6 | EO158: 3224.8 | EP158: 2613.2
D159: =IF(OR($W$1="",TYPE(VLOOKUP(DL159,UST_BETR,$W$1+1,0))=16),"",VLOOKUP(DL159,UST_BETR,$W$1+1,0)) -> 399.5 | U159: / | V159: 3 | X159: 0 | Y159: 0 | Z159: 0 | AZ159: 0 | BA159: 0 | BB159: 0 | BD159: 7 | BE159: 79.9 | BF159: 51.94 | BG159: 39.95 | CD159: =IF(OR($W$1="",TYPE(VLOOKUP(DL159,UST_BETR,$W$1+1,0))=16),"",VLOOKUP(DL159,UST_BETR,$W$1+1,0)) -> 399.5 | CH159: =ROUND($D159*CH$154,2) -> 79.9 | CJ159: =ROUND($D159*CJ$154,2) -> 51.94 | CL159: 0 | CN159: =ROUND($D159*CN$154,2) -> 39.95 | CT159: 3 | CU159: / | CV159: 3 | CX159: =CH159 -> 79.9 | CY159: =CJ159 -> 51.94 | CZ159: =CN159 -> 39.95 | DL159: 3 | DM159: 425 | DN159: 403.8 | DO159: 510 | DP159: 484.5 | DQ159: 318.8 | DR159: 374 | DS159: 476 | DT159: 573.8 | DU159: 382.5 | DV159: 352.8 | DW159: 391 | DX159: 446.3 | DY159: 437.8 | DZ159: 412.3 | EA159: 505.8 | EB159: 378.3 | EC159: 301.8 | ED159: 654.5 | EE159: 603.5 | EF159: 399.5 | EG159: 348.5 | EH159: 501.5 | EI159: 544 | EJ159: 586.5 | EK159: 323 | EL159: 395.3 | EM159: 514.3 | EN159: 624.8 | EO159: 493 | EP159: 399.5
S161: Gesamtpunkte: | T161: =SUM(T5:T160) -> 0 | U161: / | V161: =SUM(V5:V160) -> 65 | AU161: =SUM(AU71:AU160) -> 0 | AV161: / | AW161: =SUM(AW71:AW160) -> 34 | CR161: Gesamtpunkte | CT161: =SUM(CT5:CT160) -> 65 | CU161: / | CV161: =SUM(CV5:CV160) -> 65
D165: a. | F165: ="Nur heute! "&TEXT(IF(OR($W$1="",TYPE(VLOOKUP(DL168,UST_BSPS,$W$1+1,0))=16),"",VLOOKUP(DL168,UST_BSPS,$W$1+1,0)),"# ##0,00")&" EUR inkl. Ust" -> Nur heute! 13,60 EUR inkl. Ust
DL166: UST_BSPS | DM166: 1 | DN166: 2 | DO166: 3 | DP166: 4 | DQ166: 5 | DR166: 6 | DS166: 7 | DT166: 8 | DU166: 9 | DV166: 10 | DW166: 11 | DX166: 12 | DY166: 13 | DZ166: 14 | EA166: 15 | EB166: 16 | EC166: Z | ED166: 18 | EE166: 19 | EF166: 20 | EG166: 21 | EH166: 22 | EI166: 23 | EJ166: 24 | EK166: 25 | EL166: 26 | EM166: 27 | EN166: 28 | EO166: 29 | EP166: 30
CC167: Fragen 1-2 | CK167: Antworten1_3 | CS167: Ankreuzen | DM167: 1 | DN167: 0.95 | DO167: 1.2 | DP167: 1.14 | DQ167: 0.75 | DR167: 0.88 | DS167: 1.12 | DT167: 1.35 | DU167: 0.9 | DV167: 0.83 | DW167: 0.92 | DX167: 1.05 | DY167: 1.03 | DZ167: 0.97 | EA167: 1.19 | EB167: 0.89 | EC167: 0.71 | ED167: 1.54 | EE167: 1.42 | EF167: 0.94 | EG167: 0.82 | EH167: 1.18 | EI167: 1.28 | EJ167: 1.38 | EK167: 0.76 | EL167: 0.93 | EM167: 1.21 | EN167: 1.47 | EO167: 1.16 | EP167: 0.94
D168: b. | F168: ="Aktion! "&TEXT(IF(OR($W$1="",TYPE(VLOOKUP(DL171,UST_BSPS,$W$1+1,0))=16),"",VLOOKUP(DL171,UST_BSPS,$W$1+1,0)),"# ##0,00")&" EUR brutto" -> Aktion! 178,60 EUR brutto | CC168: 1 | CD168: =RAND()*CC188 -> 15.30701768 | CE168: =INDEX(CC168:CC188,RANK(CD168,CD168:CD188)) -> 6 | CF168: =$CG$72 -> Nettowert | CK168: =VLOOKUP(CC168,CE168:CF188,2,0) -> Leistungen | CS168: x | DL168: =D165 -> a. | DM168: 14.5 | DN168: =ROUND($DM168*DN$113,1) -> 13.8 | DO168: 17.4 | DP168: 16.5 | DQ168: 10.9 | DR168: 12.8 | DS168: 16.2 | DT168: 19.6 | DU168: 13.1 | DV168: 12 | DW168: 13.3 | DX168: 15.2 | DY168: 14.9 | DZ168: 14.1 | EA168: 17.3 | EB168: 12.9 | EC168: 10.3 | ED168: 22.3 | EE168: 20.6 | EF168: 13.6 | EG168: 11.9 | EH168: 17.1 | EI168: 18.6 | EJ168: 20 | EK168: 11 | EL168: 13.5 | EM168: 17.5 | EN168: 21.3 | EO168: 16.8 | EP168: 13.6
CC169: 2 | CD169: =RAND()*CC188 -> 19.32131858 | CE169: =INDEX(CC168:CC188,RANK(CD169,CD168:CD188)) -> 3 | CF169: =$CN$72 -> Preis | CK169: =VLOOKUP(CC169,CE168:CF188,2,0) -> mit
CC170: 3 | CD170: =RAND()*CC188 -> 10.32261438 | CE170: =INDEX(CC168:CC188,RANK(CD170,CD168:CD188)) -> 12 | CF170: =$CP$72 -> ohne | CK170: =VLOOKUP(CC170,CE168:CF188,2,0) -> Preis
D171: c. | F171: ="Zugreifen! "&TEXT(IF(OR($W$1="",TYPE(VLOOKUP(DL174,UST_BSPS,$W$1+1,0))=16),"",VLOOKUP(DL174,UST_BSPS,$W$1+1,0)),"# ##0,00")&" EUR inkl. Ust" -> Zugreifen! 69,40 EUR inkl. Ust | CC171: 4 | CD171: =RAND()*CC188 -> 15.27158379 | CE171: =INDEX(CC168:CC188,RANK(CD171,CD168:CD188)) -> 7 | CF171: =$CG$73 -> Bruttowert | CK171: =VLOOKUP(CC171,CE168:CF188,2,0) -> Barwertes | CS171: Nummerieren | DL171: =D168 -> b. | DM171: 190 | DN171: =ROUND($DM171*DN$113,1) -> 180.5 | DO171: 228 | DP171: 216.6 | DQ171: 142.5 | DR171: 167.2 | DS171: 212.8 | DT171: 256.5 | DU171: 171 | DV171: 157.7 | DW171: 174.8 | DX171: 199.5 | DY171: 195.7 | DZ171: 184.3 | EA171: 226.1 | EB171: 169.1 | EC171: 134.9 | ED171: 292.6 | EE171: 269.8 | EF171: 178.6 | EG171: 155.8 | EH171: 224.2 | EI171: 243.2 | EJ171: 262.2 | EK171: 144.4 | EL171: 176.7 | EM171: 229.9 | EN171: 279.3 | EO171: 220.4 | EP171: 178.6
CC172: 5 | CD172: =RAND()*CC188 -> 12.13285869 | CE172: =INDEX(CC168:CC188,RANK(CD172,CD168:CD188)) -> 10 | CF172: Betrag | CK172: =VLOOKUP(CC172,CE168:CF188,2,0) -> Nettowertes | CS172: 1
CC173: 6 | CD173: =RAND()*CC188 -> 19.88075194 | CE173: =INDEX(CC168:CC188,RANK(CD173,CD168:CD188)) -> 2 | CF173: =$CP$73 -> mit | CK173: =VLOOKUP(CC173,CE168:CF188,2,0) -> Nettowert | CS173: 2
D174: d. | F174: =TEXT(IF(OR($W$1="",TYPE(VLOOKUP(DL177,UST_BSPS,$W$1+1,0))=16),"",VLOOKUP(DL177,UST_BSPS,$W$1+1,0)),"# ##0,00")&" EUR inkl. Ust" -> 44,90 EUR inkl. Ust | CC174: 7 | CD174: =RAND()*CC188 -> 15.63798926 | CE174: =INDEX(CC168:CC188,RANK(CD174,CD168:CD188)) -> 5 | CF174: =$CH$74 -> Nettowertes | CK174: =VLOOKUP(CC174,CE168:CF188,2,0) -> Bruttowert | CS174: 3 | DL174: =D171 -> c. | DM174: 73.8 | DN174: =ROUND($DM174*DN$113,1) -> 70.1 | DO174: 88.6 | DP174: 84.1 | DQ174: 55.4 | DR174: 64.9 | DS174: 82.7 | DT174: 99.6 | DU174: 66.4 | DV174: 61.3 | DW174: 67.9 | DX174: 77.5 | DY174: 76 | DZ174: 71.6 | EA174: 87.8 | EB174: 65.7 | EC174: 52.4 | ED174: 113.7 | EE174: 104.8 | EF174: 69.4 | EG174: 60.5 | EH174: 87.1 | EI174: 94.5 | EJ174: 101.8 | EK174: 56.1 | EL174: 68.6 | EM174: 89.3 | EN174: 108.5 | EO174: 85.6 | EP174: 69.4
CC175: 8 | CD175: =RAND()*CC188 -> 9.463928504 | CE175: =INDEX(CC168:CC188,RANK(CD175,CD168:CD188)) -> 13 | CF175: Firma | CK175: =VLOOKUP(CC175,CE168:CF188,2,0) -> Finanzamt | CS175: 4
CC176: 9 | CD176: =RAND()*CC188 -> 3.590421643 | CE176: =INDEX(CC168:CC188,RANK(CD176,CD168:CD188)) -> 21 | CF176: Auftraggebers | CK176: =VLOOKUP(CC176,CE168:CF188,2,0) -> Bezahlung | CS176: 5
CC177: 10 | CD177: =RAND()*CC188 -> 5.352335412 | CE177: =INDEX(CC168:CC188,RANK(CD177,CD168:CD188)) -> 19 | CF177: =$CI$120 -> Lieferungen | CK177: =VLOOKUP(CC177,CE168:CF188,2,0) -> Betrag | CS177: 6 | DL177: =D174 -> d. | DM177: 47.8 | DN177: =ROUND($DM177*DN$113,1) -> 45.4 | DO177: 57.4 | DP177: 54.5 | DQ177: 35.9 | DR177: 42.1 | DS177: 53.5 | DT177: 64.5 | DU177: 43 | DV177: 39.7 | DW177: 44 | DX177: 50.2 | DY177: 49.2 | DZ177: 46.4 | EA177: 56.9 | EB177: 42.5 | EC177: 33.9 | ED177: 73.6 | EE177: 67.9 | EF177: 44.9 | EG177: 39.2 | EH177: 56.4 | EI177: 61.2 | EJ177: 66 | EK177: 36.3 | EL177: 44.5 | EM177: 57.8 | EN177: 70.3 | EO177: 55.4 | EP177: 44.9
CC178: 11 | CD178: =RAND()*CC188 -> 20.49138412 | CE178: =INDEX(CC168:CC188,RANK(CD178,CD168:CD188)) -> 1 | CF178: =$CP$120 -> Leistungen | CK178: =VLOOKUP(CC178,CE168:CF188,2,0) -> zur
CC179: 12 | CD179: =RAND()*CC188 -> 6.532942646 | CE179: =INDEX(CC168:CC188,RANK(CD179,CD168:CD188)) -> 17 | CF179: =$CD$121 -> Unternehmer | CK179: =VLOOKUP(CC179,CE168:CF188,2,0) -> ohne | CS179: Belegkürzel
CC180: 13 | CD180: =RAND()*CC188 -> 12.16696062 | CE180: =INDEX(CC168:CC188,RANK(CD180,CD168:CD188)) -> 9 | CF180: =$CJ$121 -> Bezahlung | CK180: =VLOOKUP(CC180,CE168:CF188,2,0) -> Firma | CS180: A
CC181: 14 | CD181: =RAND()*CC188 -> 7.871748978 | CE181: =INDEX(CC168:CC188,RANK(CD181,CD168:CD188)) -> 15 | CF181: =$CQ$121 -> Unternehmens | CK181: =VLOOKUP(CC181,CE168:CF188,2,0) -> Steuersatzes | CS181: AR
CC182: 15 | CD182: =RAND()*CC188 -> 13.89957004 | CE182: =INDEX(CC168:CC188,RANK(CD182,CD168:CD188)) -> 8 | CF182: Finanzamt | CK182: =VLOOKUP(CC182,CE168:CF188,2,0) -> Unternehmens | CS182: B
CC183: 16 | CD183: =RAND()*CC188 -> 5.683509296 | CE183: =INDEX(CC168:CC188,RANK(CD183,CD168:CD188)) -> 18 | CF183: Zahlungsbetrag | CK183: =VLOOKUP(CC183,CE168:CF188,2,0) -> für | CS183: ER
CC184: 17 | CD184: =RAND()*CC188 -> 6.97841229 | CE184: =INDEX(CC168:CC188,RANK(CD184,CD168:CD188)) -> 16 | CF184: für | CK184: =VLOOKUP(CC184,CE168:CF188,2,0) -> Unternehmer | CS184: IN
CC185: 18 | CD185: =RAND()*CC188 -> 10.86801227 | CE185: =INDEX(CC168:CC188,RANK(CD185,CD168:CD188)) -> 11 | CF185: zur | CK185: =VLOOKUP(CC185,CE168:CF188,2,0) -> Zahlungsbetrag | CS185: K
CC186: 19 | CD186: =RAND()*CC188 -> 19.22739701 | CE186: =INDEX(CC168:CC188,RANK(CD186,CD168:CD188)) -> 4 | CF186: Barwertes | CK186: =VLOOKUP(CC186,CE168:CF188,2,0) -> Lieferungen | CS186: SO
CC187: 20 | CD187: =RAND()*CC188 -> 8.905765624 | CE187: =INDEX(CC168:CC188,RANK(CD187,CD168:CD188)) -> 14 | CF187: Steuersatzes | CK187: =VLOOKUP(CC187,CE168:CF188,2,0) -> Umsatzsteuer
CC188: 21 | CD188: =RAND()*CC188 -> 4.391662042 | CE188: =INDEX(CC168:CC188,RANK(CD188,CD168:CD188)) -> 20 | CF188: Umsatzsteuer | CK188: =VLOOKUP(CC188,CE168:CF188,2,0) -> Auftraggebers
A2001: FRICK Johanna
A2002: 6
A2003: BSP1 - Fragen und Beispiele zur Umsatzsteuer
